bitfinex-derivatives/quotes_BTCF0:USTF0_20250101
["timestamp","ask_amount","ask_price","bid_price","bid_amount"]
[1735756572739,0.47988953,94257.0,94256.0,0.084971]
[1735756573541,0.59429676,94257.0,94256.0,0.084971]
[1735756574837,0.59429676,94257.0,94256.0,0.118071]
[1735756575836,0.07028823,94257.0,94256.0,0.118071]
[1735756576132,0.3608,94267.0,94266.0,0.053166]
[1735756577239,0.3608,94276.0,94275.0,0.053161]
[1735756578039,0.46687209,94276.0,94275.0,0.053161]
[1735756578239,0.47587209,94276.0,94275.0,0.053161]
[1735756580431,0.48087209,94276.0,94275.0,0.054161]
[1735756581741,0.48087209,94276.0,94275.0,0.0646165]
[1735756589851,0.3748,94276.0,94275.0,0.0646165]
[1735756590038,0.36136001,94288.0,94276.0,0.05316]
[1735756590353,0.3608,94288.0,94287.0,0.053154]
[1735756591346,0.3698,94288.0,94287.0,0.053154]
[1735756591544,0.009,94288.0,94287.0,0.053154]
[1735756592342,0.014,94288.0,94287.0,0.053154]
[1735756592950,0.014,94288.0,94287.0,0.054154]
[1735756593150,0.013,94288.0,94287.0,0.054154]
[1735756593452,0.004,94288.0,94287.0,0.053154]
[1735756593744,0.007,94288.0,94287.0,0.054154]
[1735756596046,0.007,94288.0,94287.0,0.06503708]
[1735756603256,0.007,94288.0,94287.0,1.56503708]
[1735756611469,0.18684426,94296.0,94287.0,1.51188308]
[1735756611665,0.18684426,94296.0,94295.0,0.053149]
[1735756612063,0.29289835,94296.0,94295.0,0.053149]
[1735756612664,0.30189835,94296.0,94295.0,0.053149]
[1735756612966,0.30189835,94296.0,94287.0,0.06503608]
[1735756613172,0.3608,94288.0,94287.0,0.06403608]
[1735756613971,0.46684959,94288.0,94287.0,0.06403608]
[1735756614272,0.3608,94288.0,94287.0,0.06403608]
[1735756614669,0.47516633,94288.0,94287.0,0.06403608]
[1735756615259,0.47816633,94288.0,94287.0,0.06403608]
[1735756615465,0.12536633,94288.0,94287.0,1.92583608]
[1735756615865,0.011,94288.0,94287.0,1.92583608]
[1735756622481,0.011,94288.0,94287.0,0.42583608]
[1735756623378,0.011,94288.0,94287.0,0.06503608]
[1735756625676,0.11705859,94288.0,94287.0,0.06503608]
[1735756625879,0.47785859,94288.0,94287.0,0.06503608]
[1735756627078,0.59223077,94288.0,94287.0,0.06503608]
[1735756627581,0.59223077,94288.0,94287.0,0.054153]
[1735756627983,0.58923077,94288.0,94287.0,0.054153]
[1735756628178,0.58423077,94288.0,94287.0,0.053153]
[1735756628389,0.59123077,94288.0,94287.0,0.054153]
[1735756634387,0.47685859,94288.0,94287.0,0.054153]
[1735756639002,0.11605859,94288.0,94287.0,0.054153]
[1735756639687,0.01,94288.0,94287.0,0.054153]
[1735756641285,0.01,94288.0,94287.0,0.414953]
[1735756643288,0.01,94288.0,94287.0,0.054153]
[1735756643699,0.01,94288.0,94287.0,1.554153]
[1735756645492,0.01,94288.0,94287.0,0.054153]
[1735756652402,0.11435347,94306.0,94305.0,0.053138]
[1735756653001,0.22039182,94306.0,94305.0,0.053138]
[1735756653896,0.22739182,94306.0,94305.0,0.054138]
[1735756654102,0.23439182,94306.0,94305.0,0.055138]
[1735756654899,0.12003835,94306.0,94305.0,0.055138]
[1735756657311,0.12003835,94306.0,94305.0,0.06590638]
[1735756661715,0.05819638,94309.0,94305.0,0.01276838]
[1735756662024,0.05819638,94309.0,94308.0,0.053137]
[1735756662818,0.16423473,94309.0,94308.0,0.053137]
[1735756663114,0.17123473,94309.0,94308.0,0.053137]
[1735756663812,0.17123473,94309.0,94308.0,0.054137]
[1735756664318,0.17123473,94309.0,94308.0,0.055137]
[1735756664518,0.16423473,94309.0,94308.0,0.054137]
[1735756664719,0.17023473,94309.0,94308.0,0.055137]
[1735756674026,0.06419638,94309.0,94308.0,0.055137]
[1735756675124,0.006,94309.0,94308.0,0.055137]
[1735756676125,0.004,94309.0,94308.0,0.054137]
[1735756676511,0.0618,94328.0,94308.0,0.054137]
[1735756676717,0.0618,94328.0,94317.0,0.053132]
[1735756677224,0.46682486,94318.0,94317.0,0.053132]
[1735756677425,0.3608,94318.0,94317.0,0.053132]
[1735756677828,0.3608,94318.0,94317.0,0.054132]
[1735756678620,0.3618,94318.0,94317.0,0.054132]
[1735756678821,0.001,94318.0,94317.0,0.054132]
[1735756679419,0.001,94318.0,94317.0,0.107264]
[1735756680821,0.001,94318.0,94317.0,0.47886737]
[1735756682633,0.11432275,94332.0,94328.0,0.053125]
[1735756682931,0.03176001,94341.0,94328.0,0.413925]
[1735756683232,0.0947,94359.0,94350.0,0.053113]
[1735756683437,0.0947,94359.0,94341.0,0.12424898]
[1735756683635,0.0947,94359.0,94350.0,0.053113]
[1735756683937,0.4750974,94351.0,94350.0,0.053113]
[1735756684238,0.58108517,94351.0,94350.0,0.053113]
[1735756684829,0.58108517,94351.0,94350.0,0.0353523]
[1735756685024,0.46678777,94351.0,94350.0,0.0353523]
[1735756685632,0.46778777,94351.0,94350.0,0.0353523]
[1735756686436,0.46678777,94351.0,94350.0,0.0363523]
[1735756686631,0.46678777,94351.0,94350.0,0.0373523]
[1735756686632,0.5810849,94351.0,94350.0,0.0373523]
[1735756687337,0.2202849,94351.0,94350.0,0.0373523]
[1735756688841,0.2202849,94351.0,94350.0,0.0363523]
[1735756689038,0.10698777,94351.0,94350.0,0.0363523]
[1735756689541,0.001,94351.0,94350.0,0.0363523]
[1735756692053,0.00159023,94370.0,94360.0,0.053107]
[1735756692338,0.00159023,94370.0,94360.0,0.16123302]
[1735756692543,0.10598777,94369.0,94360.0,0.16123302]
[1735756693630,0.10598777,94369.0,94368.0,0.053103]
[1735756694242,0.10598777,94369.0,94368.0,0.03393004]
[1735756694443,0.10598777,94369.0,94368.0,0.02653899]
[1735756695034,0.10598777,94369.0,94360.0,0.17302261]
[1735756695547,0.10598777,94369.0,94368.0,0.053103]
[1735756695748,0.10598777,94369.0,94368.0,0.054103]
[1735756696241,0.10598777,94369.0,94368.0,0.053103]
[1735756696943,0.10598777,94369.0,94368.0,0.054103]
[1735756699365,0.13818777,94369.0,94368.0,0.004203]
[1735756699560,0.13818777,94369.0,94343.0,0.3608]
[1735756699747,0.3608,94361.0,94360.0,0.053107]
[1735756700545,0.46677654,94361.0,94360.0,0.053107]
[1735756701951,0.46677654,94361.0,94360.0,0.054107]
[1735756702337,0.10597654,94361.0,94360.0,0.054107]
[1735756702744,0.0322,94369.0,94368.0,0.053103]
[1735756703249,0.13816756,94369.0,94368.0,0.053103]
[1735756705141,0.13816756,94369.0,94368.0,0.054103]
[1735756706645,0.10596756,94369.0,94368.0,0.054103]
[1735756714455,0.053102,94371.0,94368.0,0.001]
[1735756714658,0.053102,94371.0,94370.0,0.053102]
[1735756715149,0.15906956,94371.0,94370.0,0.053102]
[1735756716249,0.15906956,94371.0,94370.0,0.054102]
[1735756716550,0.27335251,94371.0,94370.0,0.054102]
[1735756720459,0.63415251,94371.0,94370.0,0.054102]
[1735756733063,0.58105051,94371.0,94370.0,0.054102]
[1735756737365,0.46676756,94371.0,94370.0,0.054102]
[1735756738968,0.22024225,94371.0,94370.0,0.054102]
[1735756740178,0.10596756,94371.0,94370.0,0.054102]
[1735756740476,0.11427469,94374.0,94370.0,0.054102]
[1735756740675,0.11427469,94374.0,94373.0,0.0531]
[1735756741178,0.22024,94374.0,94373.0,0.0531]
[1735756741771,0.22024,94374.0,94373.0,0.0541]
[1735756747276,0.10596531,94374.0,94373.0,0.0541]
[1735756750182,0.15906431,94374.0,94373.0,0.0541]
[1735756751483,0.27333544,94374.0,94373.0,0.0541]
[1735756757284,0.27333544,94374.0,94373.0,0.001]
[1735756761883,0.15906431,94374.0,94373.0,0.001]
[1735756763488,0.27333733,94374.0,94373.0,0.001]
[1735756768187,0.27333733,94374.0,94373.0,0.0541]
[1735756769694,0.15906431,94374.0,94373.0,0.0541]
[1735756776602,0.27334071,94374.0,94373.0,0.0541]
[1735756786203,0.27334071,94374.0,94373.0,0.001]
[1735756787810,0.27334071,94374.0,94338.0,0.053119]
[1735756787811,0.053117,94343.0,94338.0,0.053119]
[1735756788014,0.053119,94339.0,94338.0,0.00092]
[1735756788303,0.053119,94339.0,94336.0,0.01038507]
[1735756788304,0.3608,94343.0,94341.0,0.053118]
[1735756788711,0.10600126,94342.0,94341.0,0.053118]
[1735756789215,0.22027766,94342.0,94341.0,0.053118]
[1735756789504,0.22027766,94342.0,94338.0,0.003]
[1735756789705,0.22027766,94342.0,94337.0,0.0304]
[1735756789706,0.22027766,94342.0,94341.0,0.002]
[1735756789903,0.10600126,94342.0,94341.0,0.002]
[1735756790103,0.15911826,94342.0,94341.0,0.002]
[1735756790501,0.15911826,94342.0,94341.0,0.003]
[1735756791107,0.28904733,94342.0,94341.0,0.001]
[1735756791911,0.25694733,94342.0,94341.0,0.001]
[1735756792107,0.37125719,94342.0,94341.0,0.001]
[1735756792310,0.38025719,94342.0,94341.0,0.001]
[1735756792815,0.37125719,94342.0,94340.0,0.053118]
[1735756792998,0.38025719,94342.0,94341.0,0.001]
[1735756794810,0.22113893,94342.0,94341.0,0.001]
[1735756795013,0.22113893,94342.0,94341.0,0.4569]
[1735756795210,0.21213893,94342.0,94341.0,0.4559]
[1735756795416,0.22013893,94342.0,94341.0,0.4559]
[1735756795913,0.10582907,94342.0,94341.0,0.4569]
[1735756796908,0.008,94342.0,94341.0,0.4569]
[1735756798808,0.10581241,94342.0,94341.0,0.4569]
[1735756799916,0.008,94342.0,94341.0,0.4569]
[1735756802116,0.008,94342.0,94341.0,0.510018]
[1735756802912,0.008,94342.0,94341.0,0.149218]
[1735756803116,0.16711489,94342.0,94341.0,0.001]
[1735756805109,0.26594076,94342.0,94341.0,0.001]
[1735756805507,0.053118,94341.0,94340.0,0.053118]
[1735756806106,0.15911589,94341.0,94340.0,0.053118]
[1735756806318,0.25694176,94341.0,94340.0,0.053118]
[1735756806707,0.26594176,94341.0,94340.0,0.054118]
[1735756818534,0.52817076,94341.0,94340.0,0.054118]
[1735756819827,0.64247925,94341.0,94340.0,0.054118]
[1735756821729,0.52817076,94341.0,94340.0,0.054118]
[1735756823329,0.64247847,94341.0,94340.0,0.054118]
[1735756823524,0.58936047,94341.0,94340.0,0.054118]
[1735756824228,0.36905487,94341.0,94340.0,0.054118]
[1735756824434,0.36905487,94341.0,94340.0,0.149118]
[1735756828226,0.31915487,94341.0,94340.0,0.149118]
[1735756828736,0.271229,94341.0,94340.0,0.149118]
[1735756830821,0.221329,94341.0,94340.0,0.149118]
[1735756831226,0.221329,94341.0,94340.0,0.449118]
[1735756831527,0.00159024,94360.0,94359.0,0.053108]
[1735756832342,0.00159024,94360.0,94359.0,0.083308]
[1735756832638,0.00159024,94360.0,94359.0,0.115608]
[1735756832936,0.00159024,94360.0,94359.0,0.116608]
[1735756832937,0.01359024,94360.0,94359.0,0.116608]
[1735756833340,0.1113876,94360.0,94359.0,0.116608]
[1735756833735,0.1023876,94360.0,94359.0,0.115608]
[1735756834041,0.1113876,94360.0,94359.0,0.116608]
[1735756834661,0.1113876,94360.0,94359.0,0.001]
[1735756834830,0.21536527,94360.0,94359.0,0.001]
[1735756835230,0.21536527,94360.0,94359.0,0.054108]
[1735756835535,0.21436527,94360.0,94359.0,0.054108]
[1735756835736,0.21636527,94360.0,94359.0,0.054108]
[1735756835933,0.21636527,94360.0,94359.0,0.053108]
[1735756835934,0.20736527,94360.0,94359.0,0.053108]
[1735756836139,0.21136527,94360.0,94359.0,0.054108]
[1735756836639,0.26447227,94360.0,94359.0,0.054108]
[1735756838337,0.26288203,94360.0,94359.0,0.054108]
[1735756839940,0.26288203,94360.0,94359.0,0.001]
[1735756840246,0.053111,94354.0,94353.0,0.053111]
[1735756840945,0.15908867,94354.0,94353.0,0.053111]
[1735756841529,0.16008867,94354.0,94353.0,0.053111]
[1735756841733,0.11497767,94354.0,94353.0,0.054111]
[1735756844242,0.16808867,94354.0,94353.0,0.054111]
[1735756847849,0.16808867,94354.0,94353.0,0.001]
[1735756849047,0.16808867,94354.0,94353.0,0.054111]
[1735756849442,0.26589923,94354.0,94353.0,0.054111]
[1735756851940,0.21278823,94354.0,94353.0,0.054111]
[1735756854550,0.05396073,94354.0,94353.0,0.054111]
[1735756854752,0.15994513,94354.0,94353.0,0.054111]
[1735756855142,0.25994513,94354.0,94353.0,0.054111]
[1735756856553,0.374236,94354.0,94353.0,0.054111]
[1735756859553,0.25994513,94354.0,94353.0,0.054111]
[1735756860148,0.25994513,94354.0,94353.0,0.06465273]
[1735756860943,0.25994513,94354.0,94353.0,0.054111]
[1735756862651,0.31305613,94354.0,94353.0,0.054111]
[1735756863854,0.37422751,94354.0,94353.0,0.054111]
[1735756864869,0.42733851,94354.0,94353.0,0.054111]
[1735756865078,0.42733851,94354.0,94353.0,0.001]
[1735756865369,0.42733851,94354.0,94351.0,0.053112]
[1735756865573,0.053112,94352.0,94351.0,0.053112]
[1735756865764,0.37478752,94354.0,94334.0,0.00159]
[1735756865964,0.053121,94335.0,94334.0,0.00159]
[1735756866164,0.053121,94335.0,94334.0,0.054712]
[1735756866771,0.053125,94329.0,94328.0,0.053125]
[1735756867073,0.053129,94323.0,94322.0,0.053128]
[1735756868072,0.15914824,94323.0,94322.0,0.053128]
[1735756868377,0.15914824,94323.0,94322.0,0.055128]
[1735756868378,0.21310897,94323.0,94322.0,0.055128]
[1735756868876,0.21310897,94323.0,94322.0,0.058128]
[1735756869263,0.15997997,94323.0,94322.0,0.058128]
[1735756873071,0.21310797,94323.0,94322.0,0.058128]
[1735756873873,0.15914724,94323.0,94322.0,0.058128]
[1735756876173,0.15914724,94323.0,94322.0,0.005]
[1735756880882,0.16961833,94323.0,94322.0,0.005]
[1735756886587,0.16961833,94323.0,94322.0,0.058129]
[1735756887785,0.26746748,94323.0,94322.0,0.058129]
[1735756892591,0.25699639,94323.0,94322.0,0.058129]
[1735756900596,0.20386839,94323.0,94322.0,0.058129]
[1735756902289,0.20386839,94323.0,94322.0,0.06896679]
[1735756902793,0.20386839,94323.0,94322.0,0.058129]
[1735756908196,0.25699639,94323.0,94322.0,0.058129]
[1735756909207,0.25699639,94323.0,94322.0,0.005]
[1735756911399,0.25699639,94323.0,94322.0,0.058129]
[1735756919507,0.35699639,94323.0,94322.0,0.058129]
[1735756922201,0.47132956,94323.0,94322.0,0.058129]
[1735756923609,0.053136,94315.0,94314.0,0.053133]
[1735756923815,0.3608,94315.0,94307.0,0.3608]
[1735756924108,0.053137,94308.0,94307.0,0.413937]
[1735756924901,0.15915624,94308.0,94307.0,0.413937]
[1735756925300,0.25700539,94308.0,94307.0,0.42477247]
[1735756926317,0.25700539,94308.0,94307.0,0.42577247]
[1735756926603,0.26000539,94308.0,94307.0,0.42577247]
[1735756927610,0.20686839,94308.0,94307.0,0.42577247]
[1735756934106,0.20686839,94308.0,94307.0,0.42477247]
[1735756934311,0.10901924,94308.0,94307.0,0.42577247]
[1735756935820,0.13342105,94323.0,94307.0,0.37263547]
[1735756936019,0.053133,94315.0,94314.0,0.053133]
[1735756936414,0.1591691,94315.0,94314.0,0.053133]
[1735756938017,0.25801673,94315.0,94314.0,0.053133]
[1735756938924,0.26401673,94315.0,94314.0,0.053133]
[1735756942626,0.26401673,94315.0,94314.0,0.02593439]
[1735756947540,0.21088373,94315.0,94314.0,0.02593439]
[1735756949229,0.20988373,94315.0,94314.0,0.02593439]
[1735756949529,0.21088373,94315.0,94314.0,0.02593439]
[1735756963036,0.26401673,94315.0,94314.0,0.02593439]
[1735756963940,0.053135,94311.0,94310.0,0.053134]
[1735756964643,0.15916323,94311.0,94310.0,0.053134]
[1735756965141,0.16316323,94311.0,94310.0,0.053134]
[1735756965543,0.26101086,94311.0,94310.0,0.053134]
[1735756967544,0.20787586,94311.0,94310.0,0.053134]
[1735756975345,0.26101086,94311.0,94310.0,0.053134]
[1735756978840,0.26001086,94311.0,94310.0,0.053134]
[1735756986658,0.26001086,94311.0,94310.0,0.02709326]
[1735756990553,0.56767586,94311.0,94292.0,0.0319]
[1735756990753,0.053145,94293.0,94292.0,0.085045]
[1735756991458,0.15918785,94293.0,94292.0,0.085045]
[1735756991649,0.15918785,94293.0,94292.0,0.053145]
[1735756992250,0.16018785,94293.0,94292.0,0.057145]
[1735756992456,0.25803548,94293.0,94292.0,0.057145]
[1735756993352,0.27125271,94293.0,94292.0,0.057145]
[1735756994455,0.38558613,94293.0,94292.0,0.057145]
[1735756995056,0.38558613,94293.0,94292.0,0.054145]
[1735756995759,0.38558613,94293.0,94292.0,0.053145]
[1735756995950,0.33244113,94293.0,94292.0,0.054145]
[1735756997156,0.43244113,94293.0,94292.0,0.054145]
[1735757000060,0.31810771,94293.0,94292.0,0.054145]
[1735757002064,0.30489048,94293.0,94292.0,0.054145]
[1735757003552,0.20704285,94293.0,94292.0,0.054145]
[1735757006660,0.20704285,94293.0,94292.0,0.001]
[1735757006968,0.26018785,94293.0,94292.0,0.001]
[1735757008066,0.35806678,94293.0,94292.0,0.001]
[1735757009166,0.47243838,94293.0,94292.0,0.001]
[1735757014668,0.41929338,94293.0,94292.0,0.001]
[1735757015954,0.41929338,94293.0,94292.0,0.054146]
[1735757016670,0.76923004,94293.0,94292.0,0.054146]
[1735757018058,0.65485844,94293.0,94292.0,0.054146]
[1735757024984,0.76922736,94293.0,94292.0,0.054146]
[1735757031680,0.4192907,94293.0,94292.0,0.054146]
[1735757032682,0.20704285,94293.0,94292.0,0.054146]
[1735757034093,0.4192907,94293.0,94292.0,0.054146]
[1735757035187,0.30492178,94293.0,94292.0,0.054146]
[1735757039895,0.4192899,94293.0,94292.0,0.054146]
[1735757042290,0.30492178,94293.0,94292.0,0.054146]
[1735757044705,0.41927941,94293.0,94292.0,0.054146]
[1735757045205,0.31323656,94293.0,94292.0,0.054146]
[1735757047609,0.5494678,94293.0,94292.0,0.054146]
[1735757049508,0.70866577,94293.0,94292.0,0.054146]
[1735757050705,0.8230234,94293.0,94292.0,0.054146]
[1735757053506,0.7698784,94293.0,94287.0,0.01349559]
[1735757053701,0.7698784,94293.0,94287.0,0.053148]
[1735757053702,0.053148,94288.0,94287.0,0.053148]
[1735757054513,0.15920659,94288.0,94287.0,0.053148]
[1735757054807,0.25708552,94288.0,94287.0,0.053148]
[1735757056210,0.25708552,94288.0,94287.0,0.054148]
[1735757056912,0.25708552,94288.0,94287.0,0.053148]
[1735757057113,0.25808552,94288.0,94287.0,0.054148]
[1735757063902,0.20493752,94288.0,94287.0,0.054148]
[1735757065014,0.55545936,94288.0,94287.0,0.054148]
[1735757065214,0.55545936,94288.0,94287.0,0.414948]
[1735757066204,0.44940077,94288.0,94287.0,0.414948]
[1735757068317,0.39350077,94288.0,94287.0,0.714948]
[1735757069213,0.037397,94293.0,94287.0,0.714948]
[1735757069420,0.35039704,94311.0,94310.0,0.053136]
[1735757070408,0.45645563,94311.0,94310.0,0.053136]
[1735757070614,0.35939704,94311.0,94310.0,0.054136]
[1735757071619,0.009,94311.0,94310.0,0.054136]
[1735757071918,0.0314,94318.0,94317.0,0.053132]
[1735757072218,0.0314,94318.0,94317.0,0.413932]
[1735757072515,0.13742486,94318.0,94317.0,0.413932]
[1735757073618,0.15042486,94318.0,94317.0,0.414932]
[1735757077526,0.0444,94318.0,94317.0,0.414932]
[1735757079426,0.0444,94318.0,94317.0,0.054132]
[1735757082030,0.15042486,94318.0,94317.0,0.054132]
[1735757095253,0.0444,94318.0,94317.0,0.054132]
[1735757095753,0.013,94318.0,94317.0,0.054132]
[1735757097262,0.00282802,94318.0,94317.0,0.054132]
[1735757097457,0.0324,94333.0,94332.0,0.053123]
[1735757097662,0.0324,94333.0,94332.0,0.413923]
[1735757098855,0.0414,94333.0,94332.0,0.414923]
[1735757100758,0.0424,94333.0,94332.0,0.414923]
[1735757101558,0.01,94333.0,94332.0,0.414923]
[1735757101954,0.01,94333.0,94332.0,0.42772755]
[1735757102154,0.0329,94352.0,94351.0,0.053112]
[1735757103066,0.1,94354.0,94349.0,0.3608]
[1735757103259,0.1,94354.0,94353.0,0.053111]
[1735757104357,0.19779568,94354.0,94353.0,0.053111]
[1735757107171,0.1,94354.0,94353.0,0.053111]
[1735757107357,0.1,94354.0,94353.0,0.06564117]
[1735757111872,1e-06,94354.0,94353.0,0.06564117]
[1735757114070,0.0329,94368.0,94367.0,0.053103]
[1735757114262,0.0329,94368.0,94367.0,0.413903]
[1735757115067,0.41352835,94384.0,94383.0,0.053094]
[1735757115068,0.33942608,94384.0,94383.0,0.053094]
[1735757115267,0.33882607,94384.0,94383.0,0.053094]
[1735757115668,0.33882607,94384.0,94375.0,0.3608]
[1735757115869,0.0309,94383.0,94382.0,0.053095]
[1735757116576,0.13685184,94383.0,94382.0,0.053095]
[1735757117770,0.13785184,94383.0,94382.0,0.054095]
[1735757118176,0.0323,94399.0,94383.0,0.053094]
[1735757118385,0.0323,94399.0,94394.0,0.053088]
[1735757118681,0.0323,94399.0,94398.0,0.053086]
[1735757119074,0.2,94400.0,94394.0,0.42592489]
[1735757119272,0.2,94400.0,94399.0,0.053085]
[1735757119479,0.2,94400.0,94384.0,0.3608]
[1735757119783,0.3608,94391.0,94390.0,0.053091]
[1735757120269,0.46673556,94391.0,94390.0,0.053091]
[1735757120979,0.46673556,94391.0,94390.0,0.054091]
[1735757121371,0.46673556,94391.0,94370.0,0.10809492]
[1735757121571,0.3608,94383.0,94370.0,0.10809492]
[1735757122180,0.10594286,94382.0,94370.0,0.10809492]
[1735757122376,0.10594286,94382.0,94372.0,0.01183273]
[1735757122674,0.053098,94377.0,94376.0,0.053097]
[1735757123369,0.15905489,94377.0,94376.0,0.053097]
[1735757124076,0.10595689,94377.0,94376.0,0.053097]
[1735757124484,0.001,94377.0,94367.0,0.10809492]
[1735757124671,0.032,94376.0,94367.0,0.10809492]
[1735757125276,0.10595858,94375.0,94364.0,0.053105]
[1735757125475,0.10595858,94375.0,94374.0,0.0531]
[1735757125683,0.46675858,94375.0,94374.0,0.0531]
[1735757127980,0.46775858,94375.0,94374.0,0.0531]
[1735757128879,0.22123217,94375.0,94374.0,0.0531]
[1735757130186,0.10695858,94375.0,94374.0,0.0531]
[1735757132488,0.001,94375.0,94374.0,0.0531]
[1735757134981,0.001,94375.0,94374.0,0.06508944]
[1735757135684,0.2,94400.0,94374.0,0.06508944]
[1735757135685,0.2,94400.0,94399.0,0.053085]
[1735757136277,0.30596082,94400.0,94399.0,0.053085]
[1735757136985,0.29777171,94400.0,94399.0,0.053085]
[1735757137681,0.29777171,94400.0,94399.0,0.054085]
[1735757139288,0.29777171,94400.0,94399.0,0.053085]
[1735757139588,0.29777171,94400.0,94399.0,0.054085]
[1735757144786,0.2,94400.0,94399.0,0.054085]
[1735757154099,0.2,94400.0,94399.0,0.055085]
[1735757154305,0.2,94400.0,94399.0,0.056085]
[1735757164004,0.30593276,94400.0,94390.0,0.3608]
[1735757164305,0.053088,94395.0,94392.0,0.053089]
[1735757164506,0.053088,94395.0,94393.0,0.053089]
[1735757164903,0.15902581,94394.0,94393.0,0.053089]
[1735757165208,0.053088,94394.0,94393.0,0.053089]
[1735757165607,0.15902581,94394.0,94393.0,0.053089]
[1735757166708,0.16002581,94394.0,94393.0,0.053089]
[1735757166903,0.10693781,94394.0,94393.0,0.053089]
[1735757167108,0.001,94394.0,94393.0,0.053089]
[1735757167510,0.10793949,94394.0,94393.0,0.053089]
[1735757167705,0.10793949,94394.0,94391.0,1.5]
[1735757167909,0.053089,94392.0,94391.0,1.5]
[1735757168215,0.053089,94392.0,94390.0,0.37289139]
[1735757168522,0.0653,94391.0,94390.0,0.37289139]
[1735757168709,0.0653,94391.0,94390.0,0.42598139]
[1735757168710,0.11839,94391.0,94390.0,0.42598139]
[1735757168907,0.0653,94391.0,94381.0,0.3608]
[1735757169213,0.0321,94390.0,94381.0,0.37298322]
[1735757169714,0.053095,94382.0,94381.0,0.37298322]
[1735757170323,0.053099,94375.0,94370.0,0.053102]
[1735757170620,0.053101,94371.0,94369.0,0.053102]
[1735757170808,0.0938,94370.0,94369.0,0.053102]
[1735757171508,0.19975296,94370.0,94369.0,0.053102]
[1735757173114,0.20075296,94370.0,94369.0,0.053102]
[1735757175222,0.29853948,94370.0,94369.0,0.053102]
[1735757176030,0.12988652,94370.0,94369.0,0.053102]
[1735757176222,0.001,94370.0,94369.0,0.053102]
[1735757176616,0.001,94370.0,94369.0,1.553102]
[1735757177210,0.053094,94384.0,94369.0,1.501]
[1735757177410,0.053094,94384.0,94379.0,0.053097]
[1735757178322,0.10595858,94383.0,94379.0,0.053097]
[1735757178526,0.10595858,94383.0,94376.0,0.3608]
[1735757178820,0.053098,94378.0,94376.0,0.413898]
[1735757179619,0.10595296,94377.0,94376.0,0.413898]
[1735757180215,0.001,94378.0,94377.0,0.053098]
[1735757180618,0.10595801,94382.0,94377.0,0.053098]
[1735757180819,0.053095,94382.0,94378.0,0.053097]
[1735757181027,0.10595745,94381.0,94378.0,0.053097]
[1735757182526,0.10595745,94381.0,94376.0,0.3608]
[1735757182726,0.10595745,94381.0,94380.0,0.053096]
[1735757183131,0.10695745,94381.0,94380.0,0.053096]
[1735757183534,0.10795745,94381.0,94380.0,0.053096]
[1735757183722,0.10695745,94381.0,94380.0,0.053096]
[1735757183931,0.10895745,94381.0,94380.0,0.053096]
[1735757185125,0.16205345,94381.0,94380.0,0.053096]
[1735757185729,0.16005345,94381.0,94380.0,0.053096]
[1735757185923,0.15905345,94381.0,94380.0,0.053096]
[1735757186129,0.16005345,94381.0,94380.0,0.053096]
[1735757186723,0.16105345,94381.0,94380.0,0.053096]
[1735757188234,0.25883591,94381.0,94380.0,0.053096]
[1735757188627,0.09978246,94381.0,94380.0,0.053096]
[1735757188935,0.25883255,94381.0,94380.0,0.053096]
[1735757194529,0.20573655,94381.0,94380.0,0.053096]
[1735757198636,0.20473655,94381.0,94380.0,0.053096]
[1735757198833,0.20573655,94381.0,94380.0,0.053096]
[1735757199230,0.20373655,94381.0,94380.0,0.053096]
[1735757199435,0.20473655,94381.0,94380.0,0.06459756]
[1735757199634,0.09878246,94381.0,94380.0,0.06459756]
[1735757199837,0.09778246,94381.0,94380.0,0.06459756]
[1735757200133,0.09978246,94381.0,94380.0,0.06459756]
[1735757202539,0.09878246,94381.0,94380.0,0.06459756]
[1735757204031,0.20473655,94381.0,94380.0,0.053096]
[1735757205150,0.20473655,94381.0,94376.0,0.413898]
[1735757205543,0.0316,94380.0,94376.0,0.413898]
[1735757206247,0.053097,94378.0,94377.0,0.053098]
[1735757206952,0.15905445,94378.0,94377.0,0.053098]
[1735757207348,0.16005445,94378.0,94377.0,0.053098]
[1735757207753,0.25783691,94378.0,94377.0,0.053098]
[1735757208646,0.20473991,94378.0,94377.0,0.053098]
[1735757209255,0.20573991,94378.0,94377.0,0.053098]
[1735757209755,0.053098,94377.0,94376.0,0.3608]
[1735757210457,0.15905545,94377.0,94376.0,0.3608]
[1735757211144,0.20373991,94377.0,94376.0,0.413898]
[1735757211843,0.20573991,94377.0,94376.0,0.413898]
[1735757212040,0.10795745,94377.0,94376.0,0.413898]
[1735757213745,0.20574133,94377.0,94376.0,0.413898]
[1735757222152,0.09978388,94377.0,94376.0,0.413898]
[1735757223056,0.002,94377.0,94376.0,0.413898]
[1735757224548,0.001,94377.0,94376.0,0.413898]
[1735757224750,0.12403613,94390.0,94386.0,0.053093]
[1735757224957,0.053091,94390.0,94376.0,0.413898]
[1735757225161,0.10595858,94389.0,94387.0,0.053092]
[1735757225458,0.15904958,94389.0,94388.0,0.053092]
[1735757225851,0.15086863,94389.0,94388.0,0.053092]
[1735757226056,0.25681373,94389.0,94388.0,0.053092]
[1735757226854,0.20372273,94389.0,94388.0,0.053092]
[1735757227058,0.09777763,94389.0,94388.0,0.114392]
[1735757227362,0.09877763,94389.0,94388.0,0.115392]
[1735757227659,0.09977763,94389.0,94388.0,0.115392]
[1735757228256,0.09877763,94389.0,94388.0,0.115392]
[1735757228455,0.09977763,94389.0,94388.0,0.115392]
[1735757229354,0.09977763,94389.0,94388.0,0.12577815]
[1735757230556,0.053092,94387.0,94376.0,0.3608]
[1735757230756,0.053092,94387.0,94386.0,0.053093]
[1735757230960,0.09977763,94389.0,94388.0,0.053092]
[1735757231260,0.001,94389.0,94388.0,0.053092]
[1735757231560,0.1079451,94389.0,94388.0,0.053092]
[1735757232355,0.20571603,94389.0,94388.0,0.053092]
[1735757232761,0.20471603,94389.0,94388.0,0.053092]
[1735757233355,0.20571603,94389.0,94388.0,0.053092]
[1735757233747,0.20571603,94389.0,94388.0,0.0643861]